Cogmind - Beta 14 @@@ ROGUE MODE // 2024.11.19 @ 02:47:26 Player: mehbruh Result: Destroyed by Striker with Plasma Lance Performance ------------- Evolutions (9) 4500 Regions Visited (24) 4800 Robots Destroyed (665) 3325 Value Destroyed (30915) 30915 Prototype IDs (74) 1480 Alien Tech Used (2) 400 Bonus (22609) 22609 TOTAL SCORE: 68029 Bonus ------- Triggered High Security 1000 High Alert Combat Kills 17962 Follower Combat Kills 212 Aligned with FarCom 300 Met Zhirov 300 Met Warlord at Base 500 MAIN.C Attacked Warlord 500 Warlord Defense Kills 1506 Scanned by Researcher 500 Friendly Fire -171 Cogmind --------- Core Integrity 0/1600 Matter 244/300 Energy 5/100 System Corruption 33% Temperature Cool (0) Movement Core (300) Ox5 Location -1/Command Parts ------- > --- POWER (2) -------- (None) > --- PROPULSION (6) --- (None) > --- UTILITY (13) ----- (None) > --- WEAPON (4) ------- Heavy Disruptor Cannon > --- INVENTORY (5) ---- Quantum Reactor High-powered Tractor Beam Peak State ------------ > --- POWER ------------ Quantum Reactor Light Quantum Reactor > --- PROPULSION ------- Armored Heavy Treads Armored Heavy Treads High-density Centrium Heavy Treads > --- UTILITY ---------- Advanced Thermal Generator Advanced Heat Sink Advanced Heat Sink Experimental Heat Sink Advanced Cooling System High-capacity Storage Unit Advanced Targeting Computer Advanced Target Analyzer Quantum Capacitor Layered Light Armor Plating Graphene Brace Advanced System Shield > --- WEAPON ----------- Enhanced Nova Cannon Enhanced Nova Cannon Firepult > --- INVENTORY -------- Quantum Reactor Quantum Reactor Armored Heavy Treads Armored Heavy Treads Advanced Particle Charger Layered Light Armor Plating Layered Light Armor Plating Advanced Thermal Shield Long-range Tractor Beam Vortex Driver Enhanced Nova Cannon Enhanced Nova Cannon Enhanced Nova Cannon Enhanced Nova Cannon Enhanced Nova Cannon Enhanced Nova Cannon Enhanced Nova Cannon Ragnarok Missile Launcher [Rating: 196] Favorites ----------- Power Quantum Reactor Engine Heavy Deuterium Engine Power Core Reinforced Fission Core Reactor Quantum Reactor Propulsion Light Treads Treads Light Treads Wheel Compact Wheel Hover Unit Airjet Flight Unit Diametric Drive Utility High-capacity Storage Unit Device Advanced Heat Sink Storage High-capacity Storage Unit Processor Advanced Targeting Computer Hackware Advanced System Shield Protection Hardened Medium Armor Plating Weapon Improved EM Shotgun Energy Gun Improved EM Shotgun Energy Cannon Enhanced Nova Cannon Ballistic Gun Minigun Ballistic Cannon Tri-rail Accelerator Launcher Ragnarok Missile Launcher Impact Weapon Great Maul Piercing Weapon Plasma Lance Special Melee Weapon Datajack Build | -11 -10 -10 -9 -9 -9 -8 -8 -7 -7 -7 -5 -5 -5 -5 -4 -4 -4 -4 -4 -3 -3 -2 -1 -1 ------- Run | Yrd Mat Min Mat Min Exi Min Mat Fac Sto Rec Fac Upp Upp Zhi Pro Fac Upp Upp War Pro Res Res Acc Com Slots Evolved 18 | . . . 2 . . . 2 2 . . 4 . . . . 2 . . . . 2 2 2 . Power 1 | . . . . . . . . . . . 1 . . . . . . . . . . . . . Propulsion 4 | . . . 1 . . . 1 . . . 1 . . . . . . . . . 1 . . . Utility 11 | . . . 1 . . . 1 1 . . 2 . . . . 1 . . . . 1 2 2 . Weapon 2 | . . . . . . . . 1 . . . . . . . 1 . . . . . . . . Parts Attached 647 | 6 10 . 37 2 1 . 21 92 26 6 91 9 22 7 10 22 5 5 14 11 26 51 133 40 Power 42 | 1 1 . 2 . . . . 3 3 1 7 . 3 . 2 1 . . 1 1 1 6 9 . Engine 15 | 1 1 . 2 . . . . 1 2 1 3 . 2 . 1 1 . . . . . . . . Core 9 | . . . . . . . . 2 1 . 3 . 1 . . . . . 1 1 . . . . Reactor 18 | . . . . . . . . . . . 1 . . . 1 . . . . . 1 6 9 . Propulsion 112 | 2 . . 16 . 1 . 8 16 4 2 20 . 1 . 3 5 1 1 2 . 7 8 12 3 Treads 98 | 2 . . 16 . 1 . 8 12 4 1 16 . 1 . 1 5 1 1 2 . 6 8 12 1 Leg . | . . . . . . . . . . . . . . . . . . . . . . . . . Wheel 12 | . . . . . . . . 3 . . 4 . . . 2 . . . . . 1 . . 2 Hover 1 | . . . . . . . . . . 1 . . . . . . . . . . . . . . Flight 1 | . . . . . . . . 1 . . . . . . . . . . . . . . . . Utility 227 | 1 3 . 9 . . . 2 20 10 1 34 3 7 4 2 9 . 4 4 4 6 27 60 17 Device 148 | . 2 . 3 . . . 1 9 3 . 23 2 6 4 1 8 . 4 4 4 3 18 43 10 Storage 9 | 1 1 . 3 . . . . 1 . . 1 . . . . 1 . . . . . . 1 . Processor 12 | . . . 3 . . . . 1 1 . 1 . . . . . . . . . . . 5 1 Hackware 8 | . . . . . . . . 1 . 1 2 . . . 1 . . . . . 2 1 . . Protection 50 | . . . . . . . 1 8 6 . 7 1 1 . . . . . . . 1 8 11 6 Artifact . | . . . . . . . . . . . . . . . . . . . . . . . . . Weapon 266 | 2 6 . 10 2 . . 11 53 9 2 30 6 11 3 3 7 4 . 7 6 12 10 52 20 Energy Gun 83 | . 4 . 6 1 . . 11 24 5 . 1 . 3 1 1 . 1 . 1 2 3 3 16 . Energy Cannon 84 | . . . . . . . . 2 1 . 9 6 5 2 2 3 1 . 1 2 6 1 34 9 Ballistic Gun 39 | 2 . . 3 1 . . . 21 3 1 4 . 1 . . . . . 1 . . 2 . . Ballistic Cannon 34 | . . . . . . . . 1 . . 8 . . . . 4 2 . 4 2 2 2 . 9 Launcher 12 | . 2 . 1 . . . . 1 . . 1 . 1 . . . . . . . 1 1 2 2 Special Weapon . | . . . . . . . . . . . . . . . . . . . . . . . . . Impact Weapon 2 | . . . . . . . . . . . 1 . . . . . . . . . . 1 . . Slashing Weapon . | . . . . . . . . . . . . . . . . . . . . . . . . . Piercing Weapon 3 | . . . . . . . . 1 . . 2 . . . . . . . . . . . . . Special Melee Weapon 9 | . . . . . . . . 3 . 1 4 . 1 . . . . . . . . . . . Unidentified Prototypes 34 | . . . 4 . . . 3 6 5 . 1 . . 3 . 1 . . 3 . 1 6 1 . Parts Lost 106 | . 2 . 3 . . . 1 11 3 . 18 1 4 . 2 2 . 1 6 1 8 . 17 26 Power 9 | . . . . . . . . 1 . . 4 . 1 . . 1 . . 1 . 1 . . . Propulsion 27 | . . . . . . . . 5 2 . 7 . 1 . 1 . . 1 . . 3 . 2 5 Utility 46 | . 1 . . . . . . 3 . . 6 1 . . 1 1 . . 3 1 3 . 13 13 Weapon 24 | . 1 . 3 . . . 1 2 1 . 1 . 2 . . . . . 2 . 1 . 2 8 Highest Loss Streak 12 | . 1 . 2 . . . 1 2 1 . 7 1 4 . 1 2 . 1 5 1 4 . 6 12 To Critical Strikes 2 | . . . . . . . . . . . 2 . . . . . . . . . . . . . Average Slot Usage (%) 91 | . 98 100 99 100 100 100 99 96 99 100 94 98 93 79 98 84 82 77 77 80 83 88 84 77 Engine 4 | . 14 14 11 11 11 11 9 4 5 7 6 . 2 . . 2 5 5 4 . . . . . Core 1 | . . . . . . . . 2 1 . 1 5 2 5 5 5 5 5 5 9 5 . . . Reactor 2 | . . . . . . . . . . . . 5 5 5 4 2 . . . . 2 7 8 7 Treads 22 | . 28 28 32 33 33 33 36 24 29 29 28 11 10 11 11 18 19 15 15 15 19 18 11 10 Wheel 1 | . . . . . . . . 2 . . . 17 17 17 16 4 . . . . 2 . . . Device 17 | . 12 14 10 11 11 11 9 8 13 7 12 19 17 24 26 24 26 25 25 23 19 19 31 27 Storage 6 | . 14 14 11 11 11 11 9 7 7 7 5 5 5 5 5 5 5 5 5 5 4 4 4 3 Processor 6 | . . . 11 11 11 11 9 7 7 12 5 5 5 5 5 5 5 5 5 5 4 4 5 7 Hackware 3 | . . . . . . . . 5 . 1 9 . . . 1 5 5 5 5 5 7 8 3 . Protection 3 | . . . . . . . 9 6 7 7 5 7 5 1 . . . . . . 1 6 4 5 Energy Gun 7 | . 12 14 17 21 22 22 17 14 10 . . . 2 . 4 . . . . 9 1 5 6 . Energy Cannon 3 | . . . . . . . . 1 7 . 1 16 13 . 11 3 . . . 2 5 8 8 6 Ballistic Gun 3 | . 15 14 4 . . . . 6 3 22 5 . . . . . . . . . . . . . Ballistic Cannon 2 | . . . . . . . . . . . 4 . . . . 7 9 10 9 1 3 2 . 7 Peak Build Rating 196 | 6 8 8 22 22 24 24 29 53 50 46 92 93 93 82 85 118 112 116 123 126 131 176 196 179 Average Rating 84 | 4 7 8 17 21 22 24 27 41 46 45 79 80 81 67 79 102 106 112 117 121 115 155 185 156 On Entrance 67 | . 6 8 8 22 22 24 24 28 46 44 46 78 84 83 82 82 104 112 116 72 126 121 173 176 Naked Turns 54 | . . . . . . . . . . . . . . . . . . . . . . . . 54 Heaviest Build 190 | 12 30 30 92 55 55 55 64 80 82 70 122 126 126 111 111 131 131 124 145 147 142 154 190 161 Greatest Support 240 | 40 40 40 60 60 60 60 80 88 93 86 139 48 48 48 48 144 163 168 168 167 186 230 240 180 Greatest Overweight (x) 8 | 1 . . 1 . . . . 5 . . 2 2 2 2 3 3 . . . . 8 . . 2 Average Overweight (x) . | . . . . . . . . . . . . 1 2 1 2 . . . . . . . . . Largest Inventory Capacity 25 | 8 15 15 25 20 20 20 20 20 20 20 25 20 20 20 20 20 20 20 20 20 20 20 20 10 Average Capacity 19 | 7 14 15 18 20 20 20 20 20 20 20 20 20 20 20 20 20 20 20 20 20 20 20 18 9 Most Carried 20 | 4 15 13 20 20 20 20 20 20 20 20 20 20 20 20 20 20 20 20 20 19 20 20 20 10 Average Carried 18 | 2 10 13 17 20 19 20 19 19 19 19 19 19 18 19 19 19 18 19 19 16 17 19 18 8 Final Capacity 20 | 8 15 15 20 20 20 20 20 20 20 20 20 20 20 20 20 20 20 20 20 20 20 20 10 5 Final Carried 20 | 4 13 13 20 20 20 20 20 20 20 19 20 20 20 20 20 19 20 20 19 16 20 19 10 2 Class Distribution -------------------- 18% | Scavenger-Gunner 16% | Mutant 12% | Scavenger-Tank 12% | Scavenger-Mutant 8% | Hacker-Tank 7% | Skirmisher 6% | Scavenger-Skirmisher 5% | Gunner 4% | Hacker-Gunner Dominant Class ---------------- Mutant | -10/Materials Mutant | -10/Mines Scavenger-Mutant | -9/Materials Mutant | -9/Mines Mutant | -9/Exiles Mutant | -8/Mines Scavenger-Mutant | -8/Materials Skirmisher | -7/Factory Gunner | -7/Storage Commander-Skirmisher | -7/Recycling Hacker-Gunner | -5/Factory Scavenger-Tank | -5/Upper Caves Scavenger-Gunner | -5/Upper Caves Scavenger-Mutant | -5/Zhirov Scavenger-Gunner | -4/Proximity Caves Scavenger-Skirmisher | -4/Factory Scavenger-Gunner | -4/Upper Caves Scavenger-Gunner | -4/Upper Caves Scavenger-Tank | -4/Warlord Scavenger-Tank | -3/Proximity Caves Scavenger-Tank | -3/Research Hacker-Tank | -2/Research Scavenger-Gunner | -1/Access Scavenger-Gunner | -1/Command Resources | -11 -10 -10 -9 -9 -9 -8 -8 -7 -7 -7 -5 -5 -5 -5 -4 -4 -4 -4 -4 -3 -3 -2 -1 -1 ----------- Run | Yrd Mat Min Mat Min Exi Min Mat Fac Sto Rec Fac Upp Upp Zhi Pro Fac Upp Upp War Pro Res Res Acc Com Matter Collected 14078 | 232 276 . 496 24 . 10 177 1368 393 156 3215 117 240 . 254 693 226 358 415 318 404 766 1943 1997 Remotely 864 | . . . . . . . . . . . . . . . . . . . . . . 224 . 640 Salvage Created 40434 | . 524 . 1706 20 . 33 1511 2855 1232 267 3988 581 1015 . 523 883 339 345 440 772 977 614 16351 5458 Parts 1372 | . 32 . 103 2 . 5 81 164 46 13 162 15 43 . 24 35 4 13 6 7 29 11 421 156 Haulers Intercepted 25 | . 2 . 6 . . . 4 4 2 . 1 . . . . 2 . . . . . . 4 . Recyclers Shooed 19 | . 1 . 2 1 . 1 . 3 1 . 3 . . . . . . . . . . . 1 6 Parts Field Recycled . | . . . . . . . . . . . . . . . . . . . . . . . . . Retrieved Matter . | . . . . . . . . . . . . . . . . . . . . . . . . . Parts Self-Destructed 99 | . . . . . . . . . . . . 13 40 . 24 . 4 11 . 7 . . . . Prevented 6 | . . . . . . . . . . . . . . . . . 2 4 . . . . . . Kills | -11 -10 -10 -9 -9 -9 -8 -8 -7 -7 -7 -5 -5 -5 -5 -4 -4 -4 -4 -4 -3 -3 -2 -1 -1 ------- Run | Yrd Mat Min Mat Min Exi Min Mat Fac Sto Rec Fac Upp Upp Zhi Pro Fac Upp Upp War Pro Res Res Acc Com Combat Hostiles Destroyed 587 | . 12 . 35 1 . 2 18 36 21 3 70 8 19 . 14 17 6 12 10 12 17 10 185 79 Guns 165 | . 10 . 28 1 . 2 16 33 13 3 26 . 1 . 3 . . . . 1 . . 28 . Cannons 226 | . . . . . . . . . 5 . 37 2 11 . 8 16 3 12 10 4 8 8 65 37 AOE 74 | . 2 . 7 . . . . 3 1 . 4 . 3 . 1 . 1 . . 2 4 . 17 29 Classes Destroyed 28 | . 7 . 3 . . . 1 4 . . 4 1 . . 1 . . . 2 1 . 1 3 . Worker 42 | . . . 5 . . . . 3 1 . 3 . . . . 2 . . . . . . 21 7 Builder 24 | . 2 . . . . . . 2 1 . 3 . . . . 2 . . . . . 1 13 . Tunneler 5 | . . . . . . . . 1 . . 1 . . . . 1 . . . . . . 2 . Hauler 25 | . 2 . 6 . . . 4 4 2 . 1 . . . . 2 . . . . . . 4 . Recycler 30 | . 1 . 1 . . . 1 5 . 1 6 . . . . 1 . . . . . . 6 8 Carrier 1 | . . . . . . . . . . . . . . . . . . . . . . . 1 . Minesweeper 1 | . . . . . . . . . . . . . . . . . . . . 1 . . . . Mechanic 10 | . . . . . . . . . . . 2 . . . . . . . . . . . 4 4 Operator 7 | . 1 . . . . . 1 1 1 . . . . . . 1 . . . . 1 . 1 . Drone 3 | . . . . . . . . . . . . . . . 2 . . . . 1 . . . . Watcher 20 | . 1 . 4 . . . 5 2 . . 1 . . . . 1 . . . . 1 . 4 1 Swarmer 89 | . 6 . 16 1 . 2 1 . 4 . 16 . 7 . 8 5 . 5 1 . . . 13 4 Saboteur 12 | . . . . . . . . . . . . . . . . . . . . . . . 8 4 Grunt 225 | . 6 . 8 . . . 9 17 12 . 26 1 3 . . 2 4 . 6 5 9 1 79 37 Brawler 26 | . . . 1 . . . 1 . . . 4 2 3 . . . . . . 1 . 1 6 7 Duelist 26 | . . . . . . . . . . . 1 1 3 . . . . . . 1 1 . 13 6 Protector 13 | . . . . . . . . . . . 1 . . . . . . . . . . . 5 7 Sentry 51 | . . . 10 . . . 6 7 3 3 3 2 1 . 1 1 . 1 . 1 2 2 7 1 Demolisher 1 | . . . . . . . . . . . . . . . . . . . . . . 1 . . Specialist 5 | . . . . . . . . 2 . . . . . . . 2 . . 1 . . . . . Hunter 39 | . . . . . . . 1 2 1 . 4 . 2 . 2 2 . . . . 2 2 14 7 Programmer 70 | . . . . . . . . 7 1 . 13 1 . . 1 4 2 2 . 2 2 . 30 5 Heavy 4 | . . . . . . . . 1 . . 1 . . . . . . . . . 1 . 1 . Behemoth 9 | . . . . . . . . . . . 1 . 1 . . 1 . . . 1 . . 5 . Investigator 2 | . . . . . . . . . . . . . . . . . . . . . . . 1 1 Striker 5 | . . . . . . . . . . . . . . . . . . . 1 . . 3 1 . Executioner 5 | . . . . . . . . . . . . . . . . . . . 1 . . . 3 1 Thug 1 | . . . . . . . . . . . . . . . . . . 1 . . . . . . Butcher 3 | . . . . . . . . . . . . . . . . . . 3 . . . . . . Mutant 1 | . . . . . . . . . . . . 1 . . . . . . . . . . . . Best Kill Streak 50 | . 5 . 10 1 . 2 4 9 9 2 8 5 6 . 4 7 4 5 7 4 10 4 50 26 Combat Bots Only 21 | . 5 . 7 1 . 2 2 6 8 2 8 5 6 . 4 5 4 5 7 4 9 4 21 19 Max Kills in Single Turn 6 | . 3 . 5 1 . 1 1 3 2 1 2 2 3 . 3 3 3 1 2 2 2 1 5 6 Gunslinging 1 | . . . 1 . . . . . . . 1 . . . . . . . . . . . 1 . Exploded 5 | . 2 . 4 . . . . 1 1 . 2 . 3 . 1 . 1 . . 1 2 . 1 5 Melee . | . . . . . . . . . . . . . . . . . . . . . . . . . Uniques/NPCs Destroyed . | . . . . . . . . . . . . . . . . . . . . . . . . . Combat | -11 -10 -10 -9 -9 -9 -8 -8 -7 -7 -7 -5 -5 -5 -5 -4 -4 -4 -4 -4 -3 -3 -2 -1 -1 -------- Run | Yrd Mat Min Mat Min Exi Min Mat Fac Sto Rec Fac Upp Upp Zhi Pro Fac Upp Upp War Pro Res Res Acc Com Hostile Shots Fired 3246 | . 63 . 141 3 . 7 52 274 105 96 436 14 71 . 41 85 25 40 211 40 150 40 825 527 Missed 949 | . 15 . 41 2 . . 18 115 41 27 138 4 15 . 15 29 5 4 67 10 49 17 192 145 Damage Taken 40735 | . 521 . 1380 10 . 61 519 2357 817 313 5587 302 1122 . 367 513 298 444 1532 534 2148 758 12295 8857 Core 3319 | . 103 . 140 . . . 46 210 86 37 360 28 128 . 39 46 105 46 128 11 187 . 400 1219 Absorbed by Shields 4483 | . . . . . . . . . . 196 564 16 44 . 80 501 198 242 1065 57 . 20 1168 332 Reduced by Siege Mode 2557 | . . . . . . . . . . . . . . . . 3 3 52 33 36 . 69 1641 720 Ignored by Resistances 2181 | . . . . . . . . . . . . . . . . . . . 269 168 400 33 1288 23 Regen/Repaired (Parts) 1805 | . 44 . 298 . . . 43 309 347 . 610 . . . . 65 . . 89 . . . . . Core Remaining (%) 73 | 100 . 58 . . . 65 91 . . 52 . . . . 41 . . . . 70 85 100 . . Volleys Fired 1224 | . 49 . 94 3 . 4 56 90 46 16 218 14 29 . 19 40 9 18 17 24 34 28 312 104 Largest 4 | . 2 . 2 2 . 2 2 3 3 3 3 3 3 . 3 3 2 2 2 2 4 4 4 4 Hottest 480 | . 70 . 90 90 . 90 100 145 100 75 270 270 340 . 255 290 250 120 120 250 314 377 480 480 Shots Fired 2756 | . 97 . 187 6 . 8 110 253 100 47 373 26 78 . 50 81 14 37 34 28 79 110 782 256 Gun 1282 | . 95 . 186 6 . 8 110 252 76 47 198 . 6 . 13 . . . . 8 26 29 222 . Cannon 1432 | . . . . . . . . 1 24 . 171 26 71 . 37 81 14 37 34 20 47 81 549 239 Launcher 42 | . 2 . 1 . . . . . . . 4 . 1 . . . . . . . 6 . 11 17 Special . | . . . . . . . . . . . . . . . . . . . . . . . . . Kinetic 896 | . 48 . 50 1 . . . 90 19 47 324 . . . . 66 12 37 34 10 3 25 2 128 Thermal 1363 | . 47 . 50 . . . . 1 24 . 44 26 77 . 50 11 2 . . 10 62 85 769 105 Explosive 42 | . 2 . 1 . . . . . . . 4 . 1 . . . . . . . 6 . 11 17 Electromagnetic 434 | . . . 86 5 . 8 110 162 57 . 1 . . . . 4 . . . . . . . 1 Entropic 21 | . . . . . . . . . . . . . . . . . . . . 8 8 . . 5 Robot Hit Streak 44 | . 10 . 27 4 . 5 23 19 21 18 18 7 10 . 7 28 36 21 21 16 11 19 44 29 Robot Miss Streak 13 | . 3 . 4 2 . 8 4 3 4 2 4 2 2 . 13 6 3 2 3 2 2 5 4 4 Penetration Max 1 | . . . . . . . . . . . 1 . . . . . . . . . . . . 1 Secondary Targets 28 | . 3 . 2 . . . 1 3 1 1 9 . . . . . . . . . . . 8 . Max Gunslinging Chain 2 | . 1 . 1 . . . 1 1 1 1 2 . . . . . . . . . . . 1 . Capacitor 91 | . . . . . . . . . . . . . . . . . . . . . . . 91 . Shots Hit Robots 1978 | . 63 . 149 5 . 4 98 201 85 45 260 13 52 . 15 62 12 28 25 20 50 88 528 175 Core Hits 1404 | . 30 . 71 1 . 2 64 134 52 11 137 15 27 . 12 43 10 19 29 22 46 27 451 201 Critical Kills 40 | . . . . . . . . . . . 1 1 3 . . . . . . . . 1 3 31 Critical Parts Destroyed 45 | . . . . . . . . . . 1 1 . . . . . . . . . . . . 43 Critical Strikes 128 | . 2 . 3 . . . . . . 4 18 1 4 . . 4 . 3 2 . 2 5 3 77 Burn 7 | . 2 . 3 . . . . . . . . . 1 . . . . . . . 1 . . . Meltdown 11 | . . . . . . . . . . . 1 1 3 . . . . . . . . 1 3 2 Destroy 77 | . . . . . . . . . . 4 1 . . . . . . . . . . . . 72 Blast 29 | . . . . . . . . . . . 16 . . . . 4 . 3 2 . . 4 . . Sunder 4 | . . . . . . . . . . . . . . . . . . . . . 1 . . 3 Melee Attacks 12 | . . . . . . . . 1 . 6 3 . 2 . . . . . . . . . . . Impact . | . . . . . . . . . . . . . . . . . . . . . . . . . Slashing . | . . . . . . . . . . . . . . . . . . . . . . . . . Piercing 3 | . . . . . . . . 1 . . 2 . . . . . . . . . . . . . Sneak Attacks 10 | . . . . . . . . . . 6 2 . 2 . . . . . . . . . . . Combat Hostiles 5 | . . . . . . . . . . 5 . . . . . . . . . . . . . . Follow-up Attacks . | . . . . . . . . . . . . . . . . . . . . . . . . . Damage Inflicted 97159 | . 950 . 2928 52 . 67 2171 4723 2379 744 11751 781 1875 . 869 3939 957 1443 1950 1580 3417 2986 34841 16756 Guns 22507 | . 776 . 2272 52 . 62 1865 3798 1525 705 2601 . 48 . 90 . . . . 327 371 612 7403 . Cannons 45716 | . . . . . . . . 28 584 . 8405 390 1541 . 574 3448 724 1443 1950 709 1384 2371 16617 5548 Explosions 28290 | . 122 . 512 . . . 280 846 270 . 574 391 286 . 205 475 233 . . 544 1662 . 10685 11205 Melee 56 | . . . . . . . . . . . 56 . . . . . . . . . . . . . Ramming 590 | . 52 . 144 . . 5 26 51 . 39 115 . . . . 16 . . . . . 3 136 3 Kinetic 23660 | . 424 . 544 13 . . . 1157 284 705 10064 . . . . 3129 672 1443 1950 570 234 755 88 1628 Thermal 51012 | . 352 . 851 . . . 280 874 854 . 1158 781 1650 . 869 679 285 . . 683 1489 2228 32870 5109 Explosive 13405 | . 122 . 253 . . . . . . . 242 . 225 . . . . . . . 1353 . 1747 9463 Electromagnetic 7245 | . . . 1136 39 . 62 1865 2641 1241 . 116 . . . . 115 . . . . . . . 30 Impact . | . . . . . . . . . . . . . . . . . . . . . . . . . Slashing . | . . . . . . . . . . . . . . . . . . . . . . . . . Piercing 56 | . . . . . . . . . . . 56 . . . . . . . . . . . . . Entropic 1191 | . . . . . . . . . . . . . . . . . . . . 327 341 . . 523 Highest Corruption 33 | . 1 1 . . . . . 10 11 11 21 12 12 9 9 2 3 4 4 1 5 . 22 33 Average Corruption 9 | . 1 1 . . . . . 6 10 11 9 12 8 9 9 1 2 3 3 1 2 . 13 25 Corruption Purged 19 | . . . . . . . . . . . 10 . 5 . . . . . . 1 3 . . . Corruption Blocked . | . . . . . . . . . . . . . . . . . . . . . . . . . Effects 589 | . 9 . . . . . . 94 36 25 42 20 23 11 23 8 7 29 2 . 5 . 178 77 Message Errors 115 | . 2 . . . . . . 14 11 7 8 3 6 3 5 1 3 5 1 . 1 . 27 18 Matter Fused 137 | . 2 . . . . . . 24 6 4 9 5 3 3 7 3 1 8 1 . . . 39 22 Heat Flow Errors 69 | . . . . . . . . 11 2 5 7 2 3 3 2 1 1 7 . . 1 . 19 5 Energy Discharges 64 | . . . . . . . . 9 3 3 6 4 3 1 5 . . 3 . . 1 . 22 4 Parts Rejected 9 | . . . . . . . . 3 1 . 1 . 1 . . . . . . . . . 2 1 Parts Fused 6 | . . . . . . . . 2 . . . . . . . . . . . . . . 2 2 Data Loss (minor) 61 | . 4 . . . . . . 16 3 3 3 2 3 1 3 3 1 3 . . 1 . 12 3 Data Loss (major) 21 | . 1 . . . . . . 4 . 1 1 1 2 . . . . 2 . . 1 . 7 1 Misfires 28 | . . . . . . . . 3 5 . 5 2 1 . . . 1 1 . . . . 9 1 Alerts 13 | . . . . . . . . 3 3 . . 1 . . . . . . . . . . 4 2 Misdirections 7 | . . . . . . . . 1 . 1 . . . . . . . . . . . . 1 4 Weapon Failures 59 | . . . . . . . . 4 2 1 2 . 1 . 1 . . . . . . . 34 14 Overload Shots . | . . . . . . . . . . . . . . . . . . . . . . . . . Overflow Damage 3478 | . . . 73 . . . . 49 . . 925 23 19 . 51 250 16 22 9 59 69 73 902 938 Projectiles 2451 | . . . . . . . . . . . 923 23 19 . 51 136 16 22 9 59 63 73 824 233 Explosions 985 | . . . 57 . . . . 49 . . . . . . . 108 . . . . 6 . 60 705 Melee 42 | . . . 16 . . . . . . . 2 . . . . 6 . . . . . . 18 . Knockbacks 98 | . . . . . . . 1 1 . 2 27 . . . . 18 6 13 7 4 . 4 1 14 Impact 6 | . . . . . . . 1 1 . 2 . . . . . . . . . . . . 1 1 Kinetic 90 | . . . . . . . . . . . 26 . . . . 18 6 12 7 4 . 4 . 13 Secondary 2 | . . . . . . . . . . . 1 . . . . . . 1 . . . . . . Self-Inflicted Damage 1500 | . . . 68 . . . . 287 22 . 94 114 10 . . 14 70 . . 37 227 . 490 67 Shots 86 | . . . 2 . . . . 5 1 . 4 8 2 . . 1 5 . . 4 11 . 36 7 Rammed 55 | . 12 . 20 . . 1 4 3 . 4 5 . . . . 1 . . . . . . 4 1 Targets Rammed 63 | . 14 . 22 . . 1 4 3 . 4 7 . . . . 1 . . . . . 1 5 1 Kicked . | . . . . . . . . . . . . . . . . . . . . . . . . . Crushed 8 | . 2 . 2 . . . . . . . 2 . . . . . . . . . . 1 1 . Highest Temperature 1135 | . 60 . 15 . . . 18 249 235 225 339 344 339 194 205 12 . . . 314 465 381 693 1135 Average Temperature 100 | . 36 . 5 . . . 13 47 71 94 120 123 129 94 19 12 . . . 124 112 96 104 225 Received Heat Transfer 6355 | . 171 . 429 . . . 225 516 282 87 1452 32 234 . . 20 13 4 89 104 280 22 1451 944 Effects 32 | . . . . . . . . . . 2 . . . . . . . . . . 6 1 14 9 Shutdowns 12 | . . . . . . . . . . . . . . . . . . . . . 1 . 9 2 Energy Bleed 1 | . . . . . . . . . . . . . . . . . . . . . . . . 1 Interference 7 | . . . . . . . . . . 2 . . . . . . . . . . 5 . . . Matter Decay 1 | . . . . . . . . . . . . . . . . . . . . . . 1 . . Short Circuit 2 | . . . . . . . . . . . . . . . . . . . . . . . 1 1 Damage (minor) 1 | . . . . . . . . . . . . . . . . . . . . . . . 1 . Damage (major) 7 | . . . . . . . . . . . . . . . . . . . . . . . 3 4 Damage (core) 1 | . . . . . . . . . . . . . . . . . . . . . . . . 1 Siege Activations 66 | . . . . . . . . . . . . . . . . 3 1 4 4 2 1 4 37 10 Total Turns 1547 | . . . . . . . . . . . . . . . . 32 8 39 83 34 3 73 861 414 Longest Duration 175 | . . . . . . . . . . . . . . . . 15 8 20 39 20 3 22 109 175 Robots Corrupted 8 | . . . 1 . . . 3 1 2 . . . . . . 1 . . . . . . . . Combat Hostiles 4 | . . . . . . . 2 . 2 . . . . . . . . . . . . . . . Parts Fried 52 | . . . 8 . . 1 12 19 8 . . . . . . 4 . . . . . . . . Impact Corruptions 4 | . . . 1 . . . . . . . 1 . . . . 1 . . . . . . 1 . Robots Melted 133 | . . . . . . . . . . . 3 6 5 . 2 1 2 . . 6 5 1 88 14 Combat Hostiles 117 | . . . . . . . . . . . 3 6 4 . 2 1 2 . . 5 5 1 75 13 Parts Melted 553 | . 2 . 6 . . . . 1 1 . 11 12 14 . 12 7 8 . . 17 20 5 389 48 Heat Transferred 106232 | . 1184 . 1878 . . . 300 837 1003 . 2260 3150 2950 . 1820 1170 1440 . . 3200 3647 2730 66875 11788 Parts Sabotaged . | . . . . . . . . . . . . . . . . . . . . . . . . . Parts Stolen . | . . . . . . . . . . . . . . . . . . . . . . . . . Parts Stripped . | . . . . . . . . . . . . . . . . . . . . . . . . . Power Chain Reactions 22 | . . . 4 . . . 6 7 4 . 1 . . . . . . . . . . . . . Alert | -11 -10 -10 -9 -9 -9 -8 -8 -7 -7 -7 -5 -5 -5 -5 -4 -4 -4 -4 -4 -3 -3 -2 -1 -1 ------- Run | Yrd Mat Min Mat Min Exi Min Mat Fac Sto Rec Fac Upp Upp Zhi Pro Fac Upp Upp War Pro Res Res Acc Com Peak Influence 5118 | . 144 16 522 268 . 65 192 457 582 229 1613 . . . . 928 . . . . 1111 604 5088 5118 Initial 3256 | . . 10 5 193 . . 25 73 203 190 42 . . . . 640 . . . . 933 503 154 3256 Average 708 | . 62 14 207 210 . 24 107 260 371 175 657 . . . . 625 . . . . 892 327 1557 3894 Maximum Alert Level 5 | . . . 2 1 . . . 2 2 1 5 . . . . 3 . . . . 4 2 5 5 Low Security (%) 38 | 100 100 100 63 76 . 100 100 37 . 51 26 . . . . . . . . . . 22 19 . Level 1 18 | . . . 16 23 . . . 38 58 48 17 . . . . . . . . . . 33 13 . Level 2 19 | . . . 19 . . . . 23 41 . 16 . . . . 83 . . . . . 43 12 . Level 3 7 | . . . . . . . . . . . 7 . . . . 16 . . . . 96 . 14 . Level 4 6 | . . . . . . . . . . . 29 . . . . . . . . . 4 . 6 . Level 5 3 | . . . . . . . . . . . 2 . . . . . . . . . . . 4 58 High Security 6 | . . . . . . . . . . . . . . . . . . . . . . . 29 41 Max Security . | . . . . . . . . . . . . . . . . . . . . . . . . . Sterilizations 1 | . . . . . . . . . . . . . . . . . . . . . . . 1 . Squads Dispatched 103 | . 1 . 1 . . . 4 9 5 . 19 . 1 . . 6 . . . . 7 . 29 21 Investigation 6 | . . . . . . . . . 1 . 1 . . . . 1 . . . . 1 . 1 1 Extermination 25 | . . . . . . . . 7 1 . 5 . . . . 2 . . . . 2 . 7 1 Reinforcement 16 | . 1 . 1 . . . 1 2 3 . 2 . . . . 2 . . . . 1 . 3 . Assault 45 | . . . . . . . . . . . 6 . 1 . . 1 . . . . . . 18 19 Garrison 11 | . . . . . . . 3 . . . 5 . . . . . . . . . 3 . . . Intercept . | . . . . . . . . . . . . . . . . . . . . . . . . . Searches Triggered 4 | . . . . . . . . . . . . . . . . 2 . . . . 2 . . . Construction Impeded 3 | . . . . . . . . . . . 1 . . . . . . . . . . . 2 . Haulers Reinforced 1 | . . . . . . . . . 1 . . . . . . . . . . . . . . . Active Scanning Responses . | . . . . . . . . . . . . . . . . . . . . . . . . . Cargo Convoy Interrupts 1 | . . . . . . . . 1 . . . . . . . . . . . . . . . . Stealth | -11 -10 -10 -9 -9 -9 -8 -8 -7 -7 -7 -5 -5 -5 -5 -4 -4 -4 -4 -4 -3 -3 -2 -1 -1 --------- Run | Yrd Mat Min Mat Min Exi Min Mat Fac Sto Rec Fac Upp Upp Zhi Pro Fac Upp Upp War Pro Res Res Acc Com Distress Signals 32 | . . . 4 . . . 4 4 1 . 4 . . . 1 . . . . . 1 4 8 1 Communications Jammed . | . . . . . . . . . . . . . . . . . . . . . . . . . Distress Signals . | . . . . . . . . . . . . . . . . . . . . . . . . . Times Spotted 850 | . 19 . 67 4 . 3 31 57 25 4 96 8 23 . 18 21 6 11 50 17 28 13 227 122 Peak Tracking Total 19 | . 5 . 9 4 . 3 3 7 5 2 6 5 7 . 5 5 4 5 15 4 9 4 16 19 Tactical Retreats 38 | . . . 4 1 . 1 1 3 2 . 4 . . . 1 1 . . 1 . . . 15 4 Traps | -11 -10 -10 -9 -9 -9 -8 -8 -7 -7 -7 -5 -5 -5 -5 -4 -4 -4 -4 -4 -3 -3 -2 -1 -1 ------- Run | Yrd Mat Min Mat Min Exi Min Mat Fac Sto Rec Fac Upp Upp Zhi Pro Fac Upp Upp War Pro Res Res Acc Com Traps Triggered 12 | . 2 . . . . . . . . . 5 . . . . 2 . . . . 1 . 1 1 Indirectly 1 | . . . . . . . . . . . 1 . . . . . . . . . . . . . Trap Hack Attempts 70 | . . . . . . . . 42 . . 28 . . . . . . . . . . . . . Triggered 1 | . . . . . . . . . . . 1 . . . . . . . . . . . . . Disarmed 9 | . . . 3 . . . . 6 . . . . . . . . . . . . . . . . Reprogrammed 14 | . 4 . 1 . . . . 5 . . 4 . . . . . . . . . . . . . Reused 1 | . . . 1 . . . . . . . . . . . . . . . . . . . . . Traps Extracted 6 | . . . . . . . . 5 . . 1 . . . . . . . . . . . . . Installed 4 | . . . . . . . . . . . 4 . . . . . . . . . . . . . Triggered 19 | . . . 1 . . . . 1 . . . . 3 . . . 1 1 12 . . . . . Most Traps Carried 3 | . . . . . . . . 3 3 3 3 . . . . . . . . . . . . . Machines | -11 -10 -10 -9 -9 -9 -8 -8 -7 -7 -7 -5 -5 -5 -5 -4 -4 -4 -4 -4 -3 -3 -2 -1 -1 ---------- Run | Yrd Mat Min Mat Min Exi Min Mat Fac Sto Rec Fac Upp Upp Zhi Pro Fac Upp Upp War Pro Res Res Acc Com Machines Disabled 55 | . 2 . 3 . . . . 2 2 . 14 . . . . 20 . . . . 1 . 9 2 Max in Single Turn 9 | . 1 . 1 . . . . 2 1 . 1 . . . . 9 . . . . 1 . 1 1 Garrison Access 5 | . . . . . . . . 1 . . 3 . . . . . . . . . . 1 . . Energy Cycler 2 | . . . . . . . . . . . . . . . . . . . . . . . 2 . Machines Repaired . | . . . . . . . . . . . . . . . . . . . . . . . . . Machines Dismantled . | . . . . . . . . . . . . . . . . . . . . . . . . . Machines Sabotaged . | . . . . . . . . . . . . . . . . . . . . . . . . . Overloaded Fab Kills . | . . . . . . . . . . . . . . . . . . . . . . . . . Hacking | -11 -10 -10 -9 -9 -9 -8 -8 -7 -7 -7 -5 -5 -5 -5 -4 -4 -4 -4 -4 -3 -3 -2 -1 -1 --------- Run | Yrd Mat Min Mat Min Exi Min Mat Fac Sto Rec Fac Upp Upp Zhi Pro Fac Upp Upp War Pro Res Res Acc Com Machines Accessed 93 | . 8 1 13 . 1 . 11 16 6 2 11 . . 7 . 3 1 . 3 . 3 1 4 2 Terminals 58 | . 7 1 11 . . . 8 11 5 2 7 . . . . . . . . . 2 . 2 2 Fabricators 1 | . . . . . . . . . . . . . . . . 1 . . . . . . . . Repair Stations 15 | . 1 . 2 . . . 2 3 1 . 3 . . . . 2 . . . . . . 1 . Recycling Units . | . . . . . . . . . . . . . . . . . . . . . . . . . Scanalyzers . | . . . . . . . . . . . . . . . . . . . . . . . . . Garrison Access 7 | . . . . . . . 1 2 . . 1 . . . . . . . . . 1 1 1 . Total Hacks 285 | . 25 3 53 . 1 . 24 55 17 3 37 . . 29 . 9 1 . 9 . 8 2 7 2 Successful 173 | . 15 2 35 . 1 . 14 34 7 1 16 . . 29 . 5 1 . 9 . 1 1 1 1 Failed 112 | . 10 1 18 . . . 10 21 10 2 21 . . . . 4 . . . . 7 1 6 1 Catastrophic 21 | . 1 . 3 . . . 5 1 . 2 . . . . . 1 . . . . 3 1 3 1 Database Lockouts . | . . . . . . . . . . . . . . . . . . . . . . . . . Manual 144 | . 18 3 33 . 1 . 19 31 9 2 22 . . . . . . . . . 4 . 1 1 Terminals 180 | . 23 3 44 . . . 19 40 11 3 26 . . . . . . . . . 6 . 3 2 Fabricators 5 | . . . . . . . . . . . . . . . . 5 . . . . . . . . Repair Stations 48 | . 2 . 9 . . . 4 11 6 . 10 . . . . 4 . . . . . . 2 . Recycling Units . | . . . . . . . . . . . . . . . . . . . . . . . . . Scanalyzers . | . . . . . . . . . . . . . . . . . . . . . . . . . Garrison Access 12 | . . . . . . . 1 4 . . 1 . . . . . . . . . 2 2 2 . Terminal Hacks 78 | . 4 2 15 . 1 . 1 13 1 . 1 . . 29 . . 1 . 9 . . . 1 . Record 21 | . . . . . . . . 1 . . . . . 17 . . . . 2 . . . 1 . Part Schematic 6 | . . . 1 . . . . 1 . . . . . 4 . . . . . . . . . . Robot Analysis 17 | . 1 2 5 . . . 1 4 . . . . . 4 . . . . . . . . . . Prototype ID Bank 10 | . . . . . . . . . . . . . . 4 . . . . 6 . . . . . Open Door 3 | . . . . . . . . . 1 . . . . . . . 1 . 1 . . . . . Alert Level 3 | . . . 2 . . . . 1 . . . . . . . . . . . . . . . . Unreport Threat 4 | . . . 1 . . . . 2 . . 1 . . . . . . . . . . . . . Locate Traps 5 | . 2 . 2 . . . . 1 . . . . . . . . . . . . . . . . Disarm Traps 3 | . . . 2 . . . . 1 . . . . . . . . . . . . . . . . Reprogram Traps 2 | . 1 . 1 . . . . . . . . . . . . . . . . . . . . . Dispatch Records 1 | . . . . . . . . 1 . . . . . . . . . . . . . . . . Zone Layout 2 | . . . 1 . . . . 1 . . . . . . . . . . . . . . . . Derelict Proto ID Bank 1 | . . . . . 1 . . . . . . . . . . . . . . . . . . . Fabricator Hacks 3 | . . . . . . . . . . . . . . . . 3 . . . . . . . . Network Status 1 | . . . . . . . . . . . . . . . . 1 . . . . . . . . Load Schematic 1 | . . . . . . . . . . . . . . . . 1 . . . . . . . . Build 1 | . . . . . . . . . . . . . . . . 1 . . . . . . . . Repair Station Hacks 34 | . 2 . 8 . . . 3 8 4 . 7 . . . . 2 . . . . . . . . Scan Component 18 | . 1 . 4 . . . 2 4 2 . 4 . . . . 1 . . . . . . . . Repair 16 | . 1 . 4 . . . 1 4 2 . 3 . . . . 1 . . . . . . . . Recycling Unit Hacks . | . . . . . . . . . . . . . . . . . . . . . . . . . Scanalyzer . | . . . . . . . . . . . . . . . . . . . . . . . . . Garrison Access Hacks 3 | . . . . . . . . 1 . . 1 . . . . . . . . . . 1 . . Seal Access 3 | . . . . . . . . 1 . . 1 . . . . . . . . . . 1 . . Unauthorized Hacks 55 | . 9 . 12 . . . 10 12 2 1 7 . . . . . . . . . 1 . . 1 Terminals 55 | . 9 . 12 . . . 10 12 2 1 7 . . . . . . . . . 1 . . 1 Assimilate 3 | . . . . . . . 2 . . . 1 . . . . . . . . . . . . . Botnet 21 | . 3 . 2 . . . 3 6 1 1 3 . . . . . . . . . 1 . . 1 Skim 31 | . 6 . 10 . . . 5 6 1 . 3 . . . . . . . . . . . . . Fabricators . | . . . . . . . . . . . . . . . . . . . . . . . . . Repair Stations . | . . . . . . . . . . . . . . . . . . . . . . . . . Recycling Units . | . . . . . . . . . . . . . . . . . . . . . . . . . Scanalyzers . | . . . . . . . . . . . . . . . . . . . . . . . . . Garrison Access . | . . . . . . . . . . . . . . . . . . . . . . . . . Data Cores Recovered 2 | . . . . . . . 1 . . . . . . . . . . . . . 1 . . . Used 1 | . . . . . . . 1 . . . . . . . . . . . . . . . . . Hacking Detections 77 | . 8 1 12 . . . 11 15 5 2 10 . . . . 3 . . . . 3 1 4 2 Full Trace Events 3 | . . . . . . . . . 1 . . . . . . 1 . . . . . . 1 . Feedback Events . | . . . . . . . . . . . . . . . . . . . . . . . . . Feedback Blocked . | . . . . . . . . . . . . . . . . . . . . . . . . . Robot Schematics Acquired . | . . . . . . . . . . . . . . . . . . . . . . . . . Robots Built . | . . . . . . . . . . . . . . . . . . . . . . . . . Authchips . | . . . . . . . . . . . . . . . . . . . . . . . . . Time . | . . . . . . . . . . . . . . . . . . . . . . . . . Total Robot Build Rating . | . . . . . . . . . . . . . . . . . . . . . . . . . Part Schematics Acquired 6 | . . . 1 . . . . 1 . . . . . 4 . . . . . . . . . . Parts Built 1 | . . . . . . . . . . . . . . . . 1 . . . . . . . . Authchips . | . . . . . . . . . . . . . . . . . . . . . . . . . Time 51 | . . . . . . . . . . . . . . . . 51 . . . . . . . . Total Part Build Rating 1 | . . . . . . . . . . . . . . . . 1 . . . . . . . . Parts Repaired 16 | . 1 . 4 . . . 1 4 2 . 3 . . . . 1 . . . . . . . . Time 472 | . 26 . 104 . . . 51 103 76 . 68 . . . . 44 . . . . . . . . Parts Recycled . | . . . . . . . . . . . . . . . . . . . . . . . . . Recycled Matter . | . . . . . . . . . . . . . . . . . . . . . . . . . Retrieved Matter . | . . . . . . . . . . . . . . . . . . . . . . . . . Retrieved Components . | . . . . . . . . . . . . . . . . . . . . . . . . . Parts Scanalyzed . | . . . . . . . . . . . . . . . . . . . . . . . . . Part Schematics Acquired . | . . . . . . . . . . . . . . . . . . . . . . . . . Parts Damaged . | . . . . . . . . . . . . . . . . . . . . . . . . . Bothacking | -11 -10 -10 -9 -9 -9 -8 -8 -7 -7 -7 -5 -5 -5 -5 -4 -4 -4 -4 -4 -3 -3 -2 -1 -1 ------------ Run | Yrd Mat Min Mat Min Exi Min Mat Fac Sto Rec Fac Upp Upp Zhi Pro Fac Upp Upp War Pro Res Res Acc Com Used RIF Installer . | . . . . . . . . . . . . . . . . . . . . . . . . . Robots Hacked 2 | . . . . . . . . . . 1 1 . . . . . . . . . . . . . Non-combat 2 | . . . . . . . . . . 1 1 . . . . . . . . . . . . . Combat . | . . . . . . . . . . . . . . . . . . . . . . . . . Robot Hacks Applied 2 | . . . . . . . . . . 1 1 . . . . . . . . . . . . . no_distress 1 | . . . . . . . . . . . 1 . . . . . . . . . . . . . find_recycling 1 | . . . . . . . . . . 1 . . . . . . . . . . . . . . Relay Couplers Released 7 | . . . . . . . . 3 . . 4 . . . . . . . . . . . . . Machine Destruction 4 | . . . . . . . . . . . 4 . . . . . . . . . . . . . Programmers 3 | . . . . . . . . 3 . . . . . . . . . . . . . . . . Fabnet Peak Effective % . | . . . . . . . . . . . . . . . . . . . . . . . . . Robots Rewired 6 | . . . . . . . . . . 4 . . 2 . . . . . . . . . . . Allies Hacked . | . . . . . . . . . . . . . . . . . . . . . . . . . Hacks Repelled . | . . . . . . . . . . . . . . . . . . . . . . . . . Allies | -11 -10 -10 -9 -9 -9 -8 -8 -7 -7 -7 -5 -5 -5 -5 -4 -4 -4 -4 -4 -3 -3 -2 -1 -1 -------- Run | Yrd Mat Min Mat Min Exi Min Mat Fac Sto Rec Fac Upp Upp Zhi Pro Fac Upp Upp War Pro Res Res Acc Com Total Allies 8 | . . . . . . . 1 . . 4 1 . 2 . . . . . . . . . . . Largest Group 4 | . . . . . . . 1 . . 4 4 . 2 1 . . . . . . . . . . Highest-Rated Group 130 | . . . . . . . 10 . . 130 130 . 79 49 . . . . . . . . . . Highest-Rated Ally 49 | . . . . . . . 10 . . 40 40 . 49 49 . . . . . . . . . . Total Orders . | . . . . . . . . . . . . . . . . . . . . . . . . . Ally Attacks 24 | . . . . . . . . . . 7 9 . 8 . . . . . . . . . . . Total Damage 639 | . . . . . . . . . . 195 221 . 223 . . . . . . . . . . . Kills 5 | . . . . . . . . . . 1 1 . 3 . . . . . . . . . . . Allies Corrupted 1 | . . . . . . . . . . . 1 . . . . . . . . . . . . . Allies Melted 1 | . . . . . . . . . . . . . 1 . . . . . . . . . . . Intel | -11 -10 -10 -9 -9 -9 -8 -8 -7 -7 -7 -5 -5 -5 -5 -4 -4 -4 -4 -4 -3 -3 -2 -1 -1 ------- Run | Yrd Mat Min Mat Min Exi Min Mat Fac Sto Rec Fac Upp Upp Zhi Pro Fac Upp Upp War Pro Res Res Acc Com Robot Analysis Total 17 | . 1 2 5 . . . 1 4 . . . . . 4 . . . . . . . . . . Derelict Logs Recovered 5 | . . . . 1 . . . . . . . 1 . . 1 . 1 1 . . . . . . Drone Launches . | . . . . . . . . . . . . . . . . . . . . . . . . . Drone Recoveries . | . . . . . . . . . . . . . . . . . . . . . . . . . Exploration | -11 -10 -10 -9 -9 -9 -8 -8 -7 -7 -7 -5 -5 -5 -5 -4 -4 -4 -4 -4 -3 -3 -2 -1 -1 ------------- Run | Yrd Mat Min Mat Min Exi Min Mat Fac Sto Rec Fac Upp Upp Zhi Pro Fac Upp Upp War Pro Res Res Acc Com Turns Passed 33465 | 71 1487 111 3271 332 343 115 2080 4133 979 611 4823 481 759 289 618 1339 647 1130 1199 456 775 1851 4318 1247 Spaces Moved 16416 | 40 773 70 1658 200 213 63 819 2219 398 362 2315 325 381 230 395 652 375 655 639 230 360 942 1644 458 Core 114 | 7 . . . . . . . . . . . . . . . . . . . . . . . 107 Treads 13865 | 33 773 70 1658 200 213 63 819 1383 398 362 2245 . . . . 460 375 655 639 230 353 942 1644 350 Legs . | . . . . . . . . . . . . . . . . . . . . . . . . . Wheels 2437 | . . . . . . . . 836 . . 70 325 381 230 395 192 . . . . 7 . . 1 Hover . | . . . . . . . . . . . . . . . . . . . . . . . . . Flight . | . . . . . . . . . . . . . . . . . . . . . . . . . Fastest Speed 50 | 50 160 160 160 160 160 160 160 130 152 148 130 115 130 115 120 120 160 160 160 163 163 158 155 50 Average Speed 155 | 147 160 160 160 160 160 160 160 147 154 149 158 129 130 118 128 152 160 160 160 163 167 163 164 144 Slowest Speed 330 | 160 160 160 240 160 160 160 160 165 156 152 165 130 130 130 145 160 160 160 163 163 245 168 170 330 Overloaded Moves . | . . . . . . . . . . . . . . . . . . . . . . . . . Propulsion Burnouts . | . . . . . . . . . . . . . . . . . . . . . . . . . Robots Hopped . | . . . . . . . . . . . . . . . . . . . . . . . . . Cave-ins Triggered . | . . . . . . . . . . . . . . . . . . . . . . . . . Teleports 1 | . . . . . . . . . . . . . . 1 . . . . . . . . . . Exploration Rate (%) 51 | 4 98 23 94 58 60 32 69 59 45 73 59 61 61 62 58 10 66 71 83 50 7 32 44 16 Regions Visited 24 Branch Regions 15 Pre-discovered Areas 12 | . . . 3 2 . . 3 . . . . . . 3 . . . 1 . . . . . . Known Exits Taken 8 | . . 1 1 1 . 1 1 1 1 1 . . . . . . . . . . . . . . Unknown Exits Taken 16 | 1 1 . . . 1 . . . . . 1 1 1 1 1 1 1 1 1 1 1 1 1 . Scrap Searched 18 | . . . . 1 . . . . . . . 3 3 . 1 . 3 6 . 1 . . . . Spaces Dug 39 | . 10 . . . . . . 1 . . 6 . . . . . . . . . 1 . 20 1 Terrain Destroyed 822 | . 19 . 20 . . . 24 55 27 . 44 7 26 . 23 94 7 33 8 4 32 14 297 88 Melee 2 | . . . . . . . . 1 . . 1 . . . . . . . . . . . . . Projectile 342 | . . . . . . . . . 4 . 39 7 22 . 23 38 7 33 8 4 18 14 96 29 AOE 478 | . 19 . 20 . . . 24 54 23 . 4 . 4 . . 56 . . . . 14 . 201 59 Terrain Rammed . | . . . . . . . . . . . . . . . . . . . . . . . . . Walls Destroyed . | . . . . . . . . . . . . . . . . . . . . . . . . . Machines Disabled . | . . . . . . . . . . . . . . . . . . . . . . . . . Actions | -11 -10 -10 -9 -9 -9 -8 -8 -7 -7 -7 -5 -5 -5 -5 -4 -4 -4 -4 -4 -3 -3 -2 -1 -1 --------- Run | Yrd Mat Min Mat Min Exi Min Mat Fac Sto Rec Fac Upp Upp Zhi Pro Fac Upp Upp War Pro Res Res Acc Com Total 22229 | 49 914 69 2090 206 216 69 1485 2860 672 401 3133 367 581 244 466 925 413 702 785 284 471 1203 2799 825 Wait 3051 | . 56 . 203 . . 2 554 358 175 3 366 4 130 . 28 180 11 20 87 13 28 83 554 196 Move 16392 | 39 772 69 1657 199 212 62 818 2218 397 361 2314 324 380 229 394 651 374 654 638 229 359 941 1643 458 Hop . | . . . . . . . . . . . . . . . . . . . . . . . . . Pick Up 271 | 4 11 . 32 . 1 . 11 25 6 1 45 6 11 1 5 10 4 2 9 4 14 26 40 3 Fast Attach 253 | 6 3 . 12 2 . . 7 20 20 2 28 3 1 7 5 9 3 3 7 2 6 30 54 23 Attach 179 | . 1 . 5 . . . 3 17 3 1 31 5 9 1 3 8 2 1 1 9 18 5 47 9 Detach 51 | . . . 2 . . . . 3 2 . 4 1 . . 1 3 3 . . 3 8 3 16 2 Swap 217 | . 6 . 20 . 1 . 11 55 3 3 32 1 12 1 2 5 . 1 6 . 2 16 32 8 Drop 429 | . 2 . 43 2 2 . 21 27 20 4 53 9 7 5 9 18 7 3 20 . 2 70 90 15 Fire 1224 | . 49 . 94 3 . 4 56 90 46 16 218 14 29 . 19 40 9 18 17 24 34 28 312 104 Melee 12 | . . . . . . . . 1 . 6 3 . 2 . . . . . . . . . . . Ram 1 | . . . . . . . . 1 . . . . . . . . . . . . . . . . Kick . | . . . . . . . . . . . . . . . . . . . . . . . . . Crush 63 | . 14 . 22 . . 1 4 3 . 4 7 . . . . 1 . . . . . 1 5 1 Escape Stasis 12 | . . . . . . . . . . . . . . . . . . . . . . . 6 6 Rewire . | . . . . . . . . . . . . . . . . . . . . . . . . . Trap 74 | . . . . . . . . 42 . . 32 . . . . . . . . . . . . . Miscellaneous . | . . . . . . . . . . . . . . . . . . . . . . . . . Route ------- -11/Scrapyard -10/Materials (discovered 6 exits: *Mat x3 / *Min x2 / Sub) -10/Mines (discovered 3 exits: *Mat x2 / Sub) -9/Materials (discovered 5 exits: *Mat x3 / *Min x2) -9/Mines (discovered 4 exits: *Mat x2 / *Exi / [*Zio]) -9/Exiles (discovered 2 exits: [*Min x2]) -8/Mines (discovered 2 exits: *Mat x2) -8/Materials (discovered 3 exits: *Fac x3) -7/Factory (discovered 4 exits: Fac / *Sto x2 / [*Low]) -7/Storage (discovered 2 exits: Fac / *Rec) -7/Recycling (discovered 2 exits: *Fac / Scr) -5/Factory (discovered 5 exits: *Fac / [*Upp x2] / Ext x2) -5/Upper Caves -5/Upper Caves -5/Zhirov -4/Proximity Caves -4/Factory -4/Upper Caves -4/Upper Caves -4/Warlord -3/Proximity Caves -3/Research -2/Research (discovered 2 exits: *Acc x2) -1/Access (discovered 2 exits: [*Sur] / *Com) -1/Command History --------- Turn | Location | Event 9 | -11/Scrapyard | Discovered new exit (range 15) 72 | -11/Scrapyard | Entered Materials 221 | -10/Materials | Discovered new exit (range 13) 305 | -10/Materials | Build established: Mutant 488 | -10/Materials | Discovered new exit (range 10) 768 | -10/Materials | Discovered new exit (range 16) 881 | -10/Materials | Discovered new exit (range 6) 1085 | -10/Materials | Identified exit to Materials 1189 | -10/Materials | Loaded intel: 10 interactive machine locations 1226 | -10/Materials | Learned location of 2 exits from Mines 1269 | -10/Materials | Learned Materials stockpile data 1277 | -10/Materials | Learned Storage stockpile data 1293 | -10/Materials | Identified exit to Subcaves 1359 | -10/Materials | Learned 4 Recycling zone layouts 1430 | -10/Materials | Repaired Grenade Launcher 1559 | -10/Materials | Entered Mines 1639 | -10/Mines | Found a damaged Exp. Sensor Array with a note attached 1670 | -10/Mines | Entered Materials 1670 | -9/Materials | Evolved 2 slots: Propulsion x1, Utility x1 1671 | -9/Materials | Identified exit to Materials 1671 | -9/Materials | Identified exit to Mines 1759 | -9/Materials | Repaired Assault Rifle 1787 | -9/Materials | Repaired Lgt. Treads 1814 | -9/Materials | Repaired Lgt. Treads 2193 | -9/Materials | Discovered exit to Materials (range 5) 2681 | -9/Materials | Build established: Scavenger-Mutant 2735 | -9/Materials | Learned location of Zion (-7) 2798 | -9/Materials | Learned Storage terminal intel 2922 | -9/Materials | Loaded intel: 5 trap records 2964 | -9/Materials | Learned location of 1 exit from Materials 3083 | -9/Materials | Learned 4 Recycling zone layouts 3818 | -9/Materials | Destroyed 7 combat bots 4453 | -9/Materials | Learned Materials emergency access door positions 4509 | -9/Materials | Learned location of Storage (-7) 4573 | -9/Materials | Build established: Mutant 4590 | -9/Materials | Learned Materials stockpile data 4634 | -9/Materials | Learned Materials emergency access door positions 4688 | -9/Materials | Learned Recycling recycling unit intel 4798 | -9/Materials | Repaired Lgt. Treads 4941 | -9/Materials | Entered Mines 4943 | -9/Mines | Identified exit to Exiles 5072 | -9/Mines | A Derelict revealed a hidden shortcut to a safe place 5265 | -9/Mines | Deemed a non-threat by the Exiles lab entrance 5273 | -9/Mines | Entered Exiles 5294 | -9/Exiles | Discovered new exit (range 15) 5312 | -9/Exiles | Met 8R-AWN 5339 | -9/Exiles | Met EX-HEX 5387 | -9/Exiles | Met EX-BIN 5406 | -9/Exiles | Aligned with FarCom system 5408 | -9/Exiles | Given EX-Vault access code 5446 | -9/Exiles | Opened EX-Vault 5457 | -9/Exiles | Found Firepult 5488 | -9/Exiles | Warned to stay clear of 0b10 Research branches 5539 | -9/Exiles | Met EX-DEC 5597 | -9/Exiles | Discovered new exit (range 11) 5616 | -9/Exiles | Left Exiles lab with Firepult 5616 | -9/Exiles | Entered Mines 5731 | -8/Mines | Entered Materials 5731 | -8/Materials | Evolved 2 slots: Propulsion x1, Utility x1 5732 | -8/Materials | Identified exit to Factory 6185 | -8/Materials | Repaired Imp. EM Shotgun 6294 | -8/Materials | Discovered exit to Factory (range 3) 6317 | -8/Materials | Garrison activated, responded to threat 6571 | -8/Materials | Build established: Scavenger-Mutant 7145 | -8/Materials | Discovered exit to Factory (range 3) 7386 | -8/Materials | Learned Storage stockpile data 7435 | -8/Materials | Learned 12 Factory zone layouts 7500 | -8/Materials | Learned Recycling recycling unit intel 7584 | -8/Materials | Learned Factory trap positions 7641 | -8/Materials | Learned location of 1 exit from Storage 7707 | -8/Materials | Learned Factory emergency access door positions 7811 | -8/Materials | Entered Factory 7811 | -7/Factory | Evolved 2 slots: Utility x1, Weapon x1 7812 | -7/Factory | Identified exit to Storage 7814 | -7/Factory | Loaded intel: 97 trap records 8018 | -7/Factory | Repaired Med. Armor Plating 8109 | -7/Factory | Build established: Scavenger-Skirmisher 8451 | -7/Factory | Repaired Lgt. Treads 8495 | -7/Factory | Cargo convoy interrupted 8504 | -7/Factory | Repaired Imp. EM Shotgun 8613 | -7/Factory | Discovered new exit (range 4) 8800 | -7/Factory | Build established: Skirmisher 9330 | -7/Factory | Discovered exit to Storage (range 8) 10156 | -7/Factory | Repaired Imp. Treads 10196 | -7/Factory | Build established: Mutant 10396 | -7/Factory | Learned 4 Lower Caves zone layouts 10465 | -7/Factory | Learned Extension trap positions 10522 | -7/Factory | Identified exit to Factory 10538 | -7/Factory | Build established: Skirmisher 10567 | -7/Factory | Learned Extension stockpile data 10601 | -7/Factory | Learned 4 Extension zone layouts 10821 | -7/Factory | System corruption reached 10% 11693 | -7/Factory | Build established: Gunner 11933 | -7/Factory | Found Prototype Launcher 11933 | -7/Factory | Identified Rocket Array 11944 | -7/Factory | Entered Storage 11945 | -7/Storage | Identified exit to Recycling 11948 | -7/Storage | Loaded intel: 11 terminal locations 12130 | -7/Storage | Used back door to open Recycling access 12613 | -7/Storage | Destroyed 8 combat bots 12668 | -7/Storage | Repaired Adv. Treads 12730 | -7/Storage | Repaired Hrd. Medium Armor Plating 12923 | -7/Storage | Entered Recycling 12924 | -7/Recycling | Met a Zionite searching for Scraptown 12924 | -7/Recycling | Identified exit to Scraptown 12924 | -7/Recycling | Identified exit to Factory 12925 | -7/Recycling | Loaded intel: 5 recycling unit locations 13387 | -7/Recycling | Scanned before Scraplab entrance 13534 | -7/Recycling | Entered Factory 13534 | -5/Factory | Accompanied by 4 allies 13534 | -5/Factory | Evolved 4 slots: Power x1, Propulsion x1, Utility x2 13535 | -5/Factory | Identified exit to Extension 13843 | -5/Factory | Build established: Commander-Gunner 14187 | -5/Factory | Garrison activated, responded to threat 14390 | -5/Factory | Destroyed 8 combat bots 14546 | -5/Factory | Garrison activated, responded to threat 14616 | -5/Factory | Discovered new exit (range 12) 14834 | -5/Factory | Build established: Hacker-Tank 14841 | -5/Factory | Discovered new exit (range 7) 15311 | -5/Factory | Build established: Hacker-Skirmisher 15703 | -5/Factory | Garrison activated, responded to threat 15861 | -5/Factory | Destroyed B-75 Beast 16144 | -5/Factory | Repaired Hvy. Mass Driver 16323 | -5/Factory | Build established: Hacker-Mutant 16438 | -5/Factory | Repaired Arm. Medium Treads 16461 | -5/Factory | Repaired Med. Treads 16591 | -5/Factory | Discovered new exit (range 9) 16783 | -5/Factory | Garrison activated, responded to threat 16829 | -5/Factory | Build established: Hacker-Gunner 17434 | -5/Factory | First assault squad dispatched 17519 | -5/Factory | System corruption reached 10% 17572 | -5/Factory | Lost 7 parts (2p2n3u) 18030 | -5/Factory | Build established: Mutant 18275 | -5/Factory | Lost 7 parts (1p3n2u1w) 18357 | -5/Factory | Entered Upper Caves 18364 | -5/Upper Caves | Learned Factory security intel 18565 | -5/Upper Caves | Build established: Scavenger-Tank 18700 | -5/Upper Caves | Attracted the attention of an 0b10 checkpoint 18782 | -5/Upper Caves | Attracted the attention of an 0b10 outpost 18825 | -5/Upper Caves | Discovered new exit (range 11) 18838 | -5/Upper Caves | Entered another Upper Caves area 19018 | -5/Upper Caves | Spotted B-75 Beast 19031 | -5/Upper Caves | Destroyed B-75 Beast 19073 | -5/Upper Caves | Build established: Scavenger-Gunner 19117 | -5/Upper Caves | Attracted the attention of an 0b10 outpost 19211 | -5/Upper Caves | Lost 4 parts (1p1n2w) 19498 | -5/Upper Caves | Core integrity fell below 50% 19532 | -5/Upper Caves | Attracted the attention of an 0b10 checkpoint 19587 | -5/Upper Caves | Discovered new exit (range 6) 19597 | -5/Upper Caves | Entered Zhirov 19597 | -5/Zhirov | Accompanied by 1 ally 19599 | -5/Zhirov | Discovered new exit (range 3) 19622 | -5/Zhirov | Met Zhirov 19714 | -5/Zhirov | Learned location of Command (-1) 19714 | -5/Zhirov | Learned location of Testing (-2) 19714 | -5/Zhirov | Learned location of Quarantine (-3) 19734 | -5/Zhirov | Zhirov requested help retrieving the SGEMP Prototype 19770 | -5/Zhirov | Found Alien Artifact 19770 | -5/Zhirov | Identified Transdimensional Reconstructor 19770 | -5/Zhirov | Warped through subspace 19814 | -5/Zhirov | Found Alien Artifact 19814 | -5/Zhirov | Identified Integrated Dissipator 19814 | -5/Zhirov | Installed Integrated Dissipator, increased core heat dissipation (+20) 19886 | -5/Zhirov | Entered Proximity Caves 19886 | -4/Proximity Caves | Accompanied by 1 ally 19977 | -4/Proximity Caves | Spotter reported a threat 19983 | -4/Proximity Caves | Attracted the attention of an 0b10 checkpoint 20037 | -4/Proximity Caves | Spotter reported a threat 20078 | -4/Proximity Caves | Ambushed by research squad 20090 | -4/Proximity Caves | Spotter reported a threat 20177 | -4/Proximity Caves | Spotter reported a threat 20326 | -4/Proximity Caves | Learned Research terminal intel 20490 | -4/Proximity Caves | Discovered new exit (range 13) 20504 | -4/Proximity Caves | Entered Factory 20504 | -4/Factory | Evolved 2 slots: Utility x1, Weapon x1 20728 | -4/Factory | Fabricated Hcp. Storage Unit (x1) 20754 | -4/Factory | Search patrols dispatched 20773 | -4/Factory | Discovered new exit (range 11) 20836 | -4/Factory | Spotted B-86 Titan 20842 | -4/Factory | Destroyed B-86 Titan 21031 | -4/Factory | Search patrols dispatched 21279 | -4/Factory | Build established: Scavenger-Skirmisher 21631 | -4/Factory | Repaired Exp. Heat Sink 21643 | -4/Factory | Found Mni. Smartbomb Launcher 21754 | -4/Factory | First assault squad dispatched 21843 | -4/Factory | Entered Upper Caves 22157 | -4/Upper Caves | Build established: Scavenger-Gunner 22322 | -4/Upper Caves | Found DCF Scrap (10 items) 22465 | -4/Upper Caves | Discovered new exit (range 16) 22468 | -4/Upper Caves | Learned Research emergency access door positions 22490 | -4/Upper Caves | Entered another Upper Caves area 22560 | -4/Upper Caves | Attracted the attention of an 0b10 checkpoint 22623 | -4/Upper Caves | Learned location of Armory (-4) 22883 | -4/Upper Caves | Ambushed by wild Derelicts 23612 | -4/Upper Caves | Discovered new exit (range 5) 23620 | -4/Upper Caves | Entered Warlord 23697 | -4/Warlord | System corruption cleaned by Quarantine Array 24105 | -4/Warlord | Build established: Scavenger-Tank 24146 | -4/Warlord | Visited the Vortex Lab 24157 | -4/Warlord | Warlord's base attacked by MAIN.C 24165 | -4/Warlord | Found Prototype Energy Cannon 24165 | -4/Warlord | Identified Vortex Driver 24172 | -4/Warlord | Found Prototype Energy Gun 24172 | -4/Warlord | Identified Vortex Rifle 24188 | -4/Warlord | Found Vortex Driver 24196 | -4/Warlord | Found Vortex Rifle 24311 | -4/Warlord | Met Warlord 24502 | -4/Warlord | Lost 3 allies 24507 | -4/Warlord | Warlord forces counterattacked 24567 | -4/Warlord | Spotted Executioner 24602 | -4/Warlord | Found Prototype Ballistic Cannon 24602 | -4/Warlord | Identified Hvy. Autocannon 24708 | -4/Warlord | Spotted Executioner 24713 | -4/Warlord | Destroyed Executioner 24732 | -4/Warlord | Lost 28 allies 24758 | -4/Warlord | Destroyed 7 combat bots 24776 | -4/Warlord | Spotted Striker 24777 | -4/Warlord | Spotted Striker 24798 | -4/Warlord | Destroyed Striker 24803 | -4/Warlord | Discovered new exit (range 12) 24819 | -4/Warlord | Entered Proximity Caves 24822 | -3/Proximity Caves | Spotter reported a threat 24824 | -3/Proximity Caves | Spotter reported a threat 24841 | -3/Proximity Caves | Lost 5 parts (1p2u2w) 24870 | -3/Proximity Caves | Found DCF Scrap (13 items) 24875 | -3/Proximity Caves | Spotter reported a threat 24960 | -3/Proximity Caves | Spotted B-86 Titan 24963 | -3/Proximity Caves | Destroyed B-86 Titan 24975 | -3/Proximity Caves | Spotter reported a threat 25018 | -3/Proximity Caves | Spotter reported a threat 25071 | -3/Proximity Caves | Spotter reported a threat 25187 | -3/Proximity Caves | Attracted the attention of an 0b10 checkpoint 25251 | -3/Proximity Caves | Discovered new exit (range 16) 25275 | -3/Proximity Caves | Entered Research 25275 | -3/Research | Evolved 2 slots: Propulsion x1, Utility x1 25277 | -3/Research | Loaded intel: 25 terminal locations 25525 | -3/Research | Search patrols dispatched 25525 | -3/Research | Garrison activated, responded to threat 25559 | -3/Research | Lost 3 parts (2n1u) 25617 | -3/Research | Destroyed 9 combat bots 25617 | -3/Research | Lost 4 parts (1p1n2u) 25623 | -3/Research | Found Prototype Device 25623 | -3/Research | Identified Active Sensor Suite 25775 | -3/Research | Search patrols dispatched 25985 | -3/Research | Discovered new exit (range 12) 26050 | -3/Research | Entered another Research area 26050 | -2/Research | Warlord forces began assault on 0b10 26050 | -2/Research | Evolved 2 slots: Utility x2 26144 | -2/Research | Discovered new exit (range 14) 26160 | -2/Research | Research machine network offline 26423 | -2/Research | Borebot progress halted 26575 | -2/Research | Borebot progress halted 26591 | -2/Research | Borebot progress halted 26613 | -2/Research | Found Powered Armor 26935 | -2/Research | Found Prototype Launcher 26935 | -2/Research | Identified Ragnarok Missile Launcher 27099 | -2/Research | Build established: Hacker-Tank 27274 | -2/Research | Spotted Striker 27286 | -2/Research | Destroyed Striker 27519 | -2/Research | Met DD-05H 27566 | -2/Research | Lost 5 allies 27770 | -2/Research | Spotted Striker 27777 | -2/Research | Spotted Striker 27784 | -2/Research | Destroyed Striker 27791 | -2/Research | Destroyed Striker 27855 | -2/Research | Discovered new exit (range 16) 27901 | -2/Research | Entered Access 27901 | -1/Access | Evolved 2 slots: Utility x2 29187 | -1/Access | System corruption reached 10% 29444 | -1/Access | Build established: Scavenger-Gunner 29596 | -1/Access | Found Quantum Capacitor 29651 | -1/Access | First assault squad dispatched 29909 | -1/Access | Energy Cycler disabled 30103 | -1/Access | Spotted B-99 Colossus 30116 | -1/Access | Destroyed B-99 Colossus 30430 | -1/Access | Spotted B-99 Colossus 30437 | -1/Access | Destroyed B-99 Colossus 30443 | -1/Access | Destroyed B-99 Colossus 30507 | -1/Access | Discovered new exit (range 10) 30682 | -1/Access | Build established: Scavenger-Tank 30748 | -1/Access | Destroyed 12 combat bots 30819 | -1/Access | Lost 3 parts (3u) 30821 | -1/Access | Destroyed 7 combat bots 30960 | -1/Access | High security lockdown imminent 31040 | -1/Access | High security lockdown engaged 31123 | -1/Access | Destroyed 14 combat bots 31128 | -1/Access | Lost 6 parts (1n4u1w) 31205 | -1/Access | Destroyed 8 combat bots 31272 | -1/Access | Scanned by Researcher 31275 | -1/Access | Destroyed Investigator 31302 | -1/Access | Destroyed 21 combat bots 31314 | -1/Access | Destroyed Executioner 31315 | -1/Access | Spotted Executioner 31318 | -1/Access | Destroyed Executioner 31341 | -1/Access | Sterilization system engaged 31349 | -1/Access | Destroyed 9 combat bots 31384 | -1/Access | Spotted Executioner 31387 | -1/Access | Destroyed Executioner 31424 | -1/Access | Destroyed 15 combat bots 31493 | -1/Access | Destroyed Striker 31537 | -1/Access | Destroyed 19 combat bots 31641 | -1/Access | Ambient heat levels rising (+10) 31759 | -1/Access | Build established: Scavenger-Skirmisher 31791 | -1/Access | Ambient heat levels rising (+10) 31941 | -1/Access | Ambient heat levels rising (+10) 32065 | -1/Access | Found Powered Armor 32091 | -1/Access | Ambient heat levels rising (+10) 32092 | -1/Access | Spotted B-99 Colossus 32096 | -1/Access | Destroyed B-99 Colossus 32102 | -1/Access | Spotted B-99 Colossus 32104 | -1/Access | Destroyed B-99 Colossus 32165 | -1/Access | Found Hvy. Insulated Plating 32212 | -1/Access | Discovered new exit (range 3) 32219 | -1/Access | Entered Command 32281 | -1/Command | Build established: Scavenger-Gunner 32469 | -1/Command | First assault squad dispatched 32651 | -1/Command | Lost 3 parts (1u2w) 32664 | -1/Command | Destroyed 18 combat bots 32946 | -1/Command | High security lockdown imminent 33026 | -1/Command | High security lockdown engaged 33236 | -1/Command | Destroyed 18 combat bots 33236 | -1/Command | Lost 4 parts (1n2u1w) 33271 | -1/Command | Build established: Scavenger-Tank 33281 | -1/Command | Spotted Executioner 33292 | -1/Command | Spotted Investigator 33296 | -1/Command | Destroyed Investigator 33301 | -1/Command | System corruption reached 30% 33306 | -1/Command | Destroyed Executioner 33334 | -1/Command | Destroyed 19 combat bots 33344 | -1/Command | Lost 4 parts (2n1u1w) 33393 | -1/Command | Spotted Striker 33400 | -1/Command | Core integrity fell below 50% 33404 | -1/Command | Released all parts (10) 33418 | -1/Command | Core integrity fell below 20% 33446 | -1/Command | Lost 12 parts (2n6u4w) 33466 | -1/Command | Destroyed by Striker with Plasma Lance Last Messages --------------- 33407_ K-01 Serf collects debris. 33409_ Slug penetrates Striker. 33411_ K-01 Serf collects debris. 33411_ Acquired 2 matter. 33413_ Acquired Com. Wheel. 33415_ Penetrated by Slug. 33415_ Com. Wheel destroyed. 33415_ Penetrated by Slug. 33416_ System corrupted: Heat flow error (+291). 33418_ W-44 Eye suffers critical hit (Burn). 33420_ Acquired 87 matter. 33420_ Acquired 2 matter. 33430_ Penetrated by Slug. 33430_ Slug penetrates Striker. 33447_ , [Achievement: Torch] Map ----- +----------------------------------------------------+ | ???????????????# % ???????? | | ?????????????### #????????????? | | ?????????????# # % #????????????? | | ?????????????## = #????????????? | | ???????????### # ############+######???????? | | ???????????# ############# #???????# | | ???????????# # # #???????# | | ?????#?????# # # ######### | | ?????# ???# %# # + | | ?##### ### # # ### # ######### | | % %%# # #???????# | | % # ########???????# | | "" #??????????????? | | % """"#??????????????# | | ^ # """"#??????????????# | | ? #"###""####l "" #??????????????# | | ? ##??####?#" # #??????????????# | | ?? == ????????#### # #??????????????# | | ????==???#######"###+##############??????????????# | | ?????????# # #???????????????????? | | ?????????# # #???????????????????? | | ????????w# """" # """ #???????????????????? | | ?????????# ""T" #p ""T"" #???????????????????? | | ?????????+ # "" "" #???????????????????? | | ?????????# ! # #???????????????????? | | ?????????# !!# K@ #???????????????????? | | ?????????# [!!# ! #???????????????????? | | ?????????#######%#######+#####???????????????????? | | ?????????#######!###### #???????????????????????? | | ?????????# + #???????????????????????? | | ?????????# # #???????????????????????? | | ?????????# # #???????????????????????? | | ?????????# # #???????##############??? | | #????????# "" #^^#???????# """T""" #??? | | #! ??????#"""" [ # #???????# """ """ #### | | # ????#"""" # +???????# # # | | # ??# "" # #???????# # # | | # # # #???????# # # | | #"" + + #???????# "" # # | | #"" # # #???????# """" # # | | #"Y ??# # #???????# """" + # | | #"" ????############## #???????# "" # | | #""????? ######### # | | ??????? + # | | ???????? ######### + | | ????????? #############+#######??##############+## | | ?????????????????????# #??????????????????? | | ?????????????????????# #??????????????????? | | ?????????????????????# #??????????????????? | | ?????????????????????# ! #??????????????????? | +----------------------------------------------------+ Best States ------------- Heat Dissipation 262 Energy Generation 45 Energy Capacity 600 Matter Stores 330 Matter Capacity 600 Sight Range 16 Terrain Scan Density 10 Base Temperature (-) 200 Armor Coverage 2000 Resistance: KI 25 Resistance: TH 30 Resistance: EM 30 Phase Shifting 15 Evasion (%) 55 Targeting Accuracy 8 Target Analysis 8 Recoil Reduction 6 Particle Charging 30 Kinecelleration 40 Offensive Hacking 14 Defensive Hacking 14 Trap Extractor Capacity 6 Item Schematics ----------------- Hcp. Storage Unit | -9/Materials | Hacked Plasma Cannon | -7/Factory | Hacked Assault Drone Bay | -5/Zhirov | Free Exp. Heat Sink | -5/Zhirov | Free Exp. Optical Array | -5/Zhirov | Free Imp. Arc Thrower | -5/Zhirov | Free Robot Schematics ------------------ None Fabricated ------------ Hcp. Storage Unit | x1 | -4/Factory Alien Tech Used ----------------- Transdimensional Reconstructor Integrated Dissipator Achievements -------------- I Spy Pyromaniac Torch Turtlemind Challenges ------------ None Game ------ Seed ConcussivePoweredRipper Manual? 0 Play Time 05:42:47 Cumulative 64.5 hours Start 2024.11.18 @ 20:50:11 End 2024.11.19 @ 02:47:26 Sessions 1 Manual Loads 0 Difficulty Rogue Special Mode None Game No. 53 Rogue 53 Adventurer 0 Explorer 0 Win Type - Total 2 Types 2/0/0/0/0/0/0/0/0 Lore% 24 Gallery% 42 Achievement% 43 Wizard Run 0 Options --------- Layout 1 ASCII 0 Keyboard 0 Movement Arrows Keybinds 0 Fullscreen 1 Font 24/Smallcaps Map View 50x35 Zoom Use 0% Tactical HUD 1 Map Filters NONE Filters NONE Steam 1 RUN: 8a254350-65d1-457d-b752-54329d5751e6